fUST/lending_fUST_20260506
["ID","MTS","AMOUNT","RATE_DAILY","PERIOD"]
[421650427,1778022646000,-500.0,0.00012328,2]
[421650428,1778022646000,-2145.11,0.00012328,2]
[421650410,1778022646000,-6885.4,0.00012328,2]
[421650406,1778022646000,-500.0,0.00012328,2]
[421650407,1778022646000,-681.21,0.00012328,2]
[421650413,1778022646000,-500.0,0.00012328,2]
[421650411,1778022646000,-500.0,0.00012328,2]
[421650412,1778022646000,-2513.91,0.00012328,2]
[421650420,1778022646000,-500.0,0.00012328,2]
[421650418,1778022646000,-2337.3,0.00012328,2]
[421650421,1778022646000,-500.0,0.00012328,2]
[421650409,1778022646000,-500.0,0.00012328,2]
[421650422,1778022646000,-500.0,0.00012328,2]
[421650419,1778022646000,-500.0,0.00012328,2]
[421650423,1778022646000,-537.2,0.00012328,2]
[421650425,1778022646000,-500.0,0.00012328,2]
[421650426,1778022646000,-500.0,0.00012328,2]
[421650429,1778022646000,-500.0,0.00012328,2]
[421650430,1778022646000,-500.0,0.00012328,2]
[421650432,1778022646000,-341.32424228,0.00012328,2]
[421650431,1778022646000,-500.0,0.00012328,2]
[421650493,1778023832000,-1737.37011137,0.00010852,2]
[421650496,1778023832000,-182.289,0.00011297,2]
[421650495,1778023832000,-339.18320729,0.00011185,2]
[421650498,1778023832000,-4163.99002402,0.00011328,2]
[421650494,1778023832000,-3262.62988863,0.00010852,2]
[421650497,1778023832000,-178.97505304,0.00011328,2]
[421650563,1778023838000,-500.0,0.00011327,2]
[421650561,1778023838000,-500.0,0.00011327,2]
[421650562,1778023838000,-314.54411278,0.00011327,2]
[421650558,1778023838000,-635.11086804,0.00011327,2]
[421650556,1778023838000,-500.0,0.00011327,2]
[421650559,1778023838000,-500.0,0.00011327,2]
[421650560,1778023838000,-500.0,0.00011327,2]
[421650554,1778023838000,-5000.0,0.00011215,2]
[421650557,1778023838000,-500.0,0.00011327,2]
[421650565,1778023838000,-500.0,0.00011327,2]
[421650564,1778023838000,-500.0,0.00011327,2]
[421650573,1778023838000,-260.27876304,0.00011327,2]
[421650577,1778023838000,-400149.98830412,0.00011328,2]
[421650575,1778023838000,-19432.43350424,0.00011328,2]
[421650566,1778023838000,-500.0,0.00011327,2]
[421650571,1778023838000,-500.0,0.00011327,2]
[421650567,1778023838000,-500.0,0.00011327,2]
[421650570,1778023838000,-500.0,0.00011327,2]
[421650568,1778023838000,-420.86943738,0.00011327,2]
[421650569,1778023838000,-500.0,0.00011327,2]
[421650576,1778023838000,-17774.13086585,0.00011328,2]
[421650574,1778023838000,-1796.99930061,0.00011328,2]
[421650585,1778023840000,-475.5589574,0.00011328,2]
[421650594,1778023843000,-4183.23342781,0.00011328,2]
[421650597,1778023844000,-5284.15326649,0.00011328,2]
[421650598,1778023844000,-5029.77788828,0.00011328,2]
[421650600,1778023844000,-8545.19668423,0.00011328,2]
[421650596,1778023844000,-26064.12341471,0.00011328,2]
[421650602,1778023844000,-6264.6768635,0.00011328,2]
[421650599,1778023844000,-1591.27977177,0.00011328,2]
[421650603,1778023844000,-3928.60947472,0.00011328,2]
[421650601,1778023844000,-7040.94383452,0.00011328,2]
[421650644,1778023846000,-699.74,0.00012328,2]
[421650643,1778023846000,-500.0,0.00012328,2]
[421650623,1778023846000,-300.0,0.00011757,2]
[421650626,1778023846000,-300.0,0.00011757,2]
[421650627,1778023846000,-300.0,0.00011757,2]
[421650624,1778023846000,-300.0,0.00011757,2]
[421650625,1778023846000,-300.0,0.00011757,2]
[421650628,1778023846000,-300.0,0.00011757,2]
[421650631,1778023846000,-300.0,0.00011757,2]
[421650618,1778023846000,-974.61469191,0.00011328,2]
[421650621,1778023846000,-300.0,0.00011757,2]
[421650620,1778023846000,-1559.0,0.0001153,2]
[421650630,1778023846000,-300.0,0.00011757,2]
[421650629,1778023846000,-300.0,0.00011757,2]
[421650619,1778023846000,-23243.37945809,0.00011328,2]
[421650617,1778023846000,-10820.90150285,0.00011328,2]
[421650645,1778023846000,-500.0,0.00012328,2]
[421650622,1778023846000,-300.0,0.00011757,2]
[421650634,1778023846000,-300.0,0.00011757,2]
[421650642,1778023846000,-500.0,0.00012328,2]
[421650636,1778023846000,-300.0,0.00011757,2]
[421650656,1778023846000,-424.65286544,0.00012328,2]
[421650652,1778023846000,-212.81,0.00012328,2]
[421650650,1778023846000,-500.0,0.00012328,2]
[421650654,1778023846000,-500.0,0.00012328,2]
[421650646,1778023846000,-183.24047432,0.00012328,2]
[421650649,1778023846000,-500.0,0.00012328,2]
[421650657,1778023846000,-500.0,0.00012328,2]
[421650648,1778023846000,-500.0,0.00012328,2]
[421650651,1778023846000,-500.0,0.00012328,2]
[421650647,1778023846000,-583.98,0.00012328,2]
[421650653,1778023846000,-500.0,0.00012328,2]
[421650635,1778023846000,-300.0,0.00011757,2]
[421650638,1778023846000,-189.0,0.00011945,3]
[421650639,1778023846000,-1559.0,0.00012078,2]
[421650632,1778023846000,-300.0,0.00011757,2]
[421650637,1778023846000,-600.0,0.00011757,2]
[421650640,1778023846000,-1475.464,0.00012328,2]
[421650641,1778023846000,-571.7,0.00012328,2]
[421650655,1778023846000,-1146.37,0.00012328,2]
[421650665,1778023847000,-500.0,0.00012328,2]
[421650666,1778023847000,-500.0,0.00012328,2]
[421650668,1778023847000,-269.24994864,0.00012328,2]
[421650663,1778023847000,-1072.06,0.00012328,2]
[421650669,1778023847000,-500.0,0.00012328,2]
[421650664,1778023847000,-500.0,0.00012328,2]
[421650670,1778023847000,-500.0,0.00012328,2]
[421650662,1778023847000,-500.0,0.00012328,2]
[421650660,1778023847000,-500.0,0.00012328,2]
[421650659,1778023847000,-500.0,0.00012328,2]
[421650658,1778023847000,-500.0,0.00012328,2]
[421650671,1778023847000,-500.0,0.00012328,2]
[421650661,1778023847000,-500.0,0.00012328,2]
[421650667,1778023847000,-176.15869772,0.00012328,2]
[421650678,1778023847000,-1212.83,0.00012328,2]
[421650672,1778023847000,-500.0,0.00012328,2]
[421650679,1778023847000,-606.82,0.00012328,2]
[421650680,1778023847000,-640.7,0.00012328,2]
[421650681,1778023847000,-1203.71,0.00012328,2]
[421650682,1778023847000,-329.77373621,0.00012328,2]
[421650676,1778023847000,-2293.23,0.00012328,2]
[421650675,1778023847000,-565.13,0.00012328,2]
[421650683,1778023847000,-170.22626379,0.00012328,2]
[421650674,1778023847000,-503.79,0.00012328,2]
[421650677,1778023847000,-500.0,0.00012328,2]
[421650685,1778023847000,-256.51680244,0.00012328,2]
[421650684,1778023847000,-584.82,0.00012328,2]
[421650673,1778023847000,-727.48,0.00012328,2]
[421650787,1778024153000,-300.0,0.00011016,2]
[421650788,1778024153000,-4814.10586289,0.00011017,2]
[421650790,1778024153000,-10511.03113711,0.00011128,2]
[421650789,1778024153000,-185.89413711,0.00011017,2]
[421650791,1778024157000,5000.0,0.00011017,2]
[421650798,1778024477000,300.0,0.0002082,120]
[421650847,1778024975000,389.10586289,0.00010927,2]
[421650896,1778025032000,-500.0,0.00011027,2]
[421650894,1778025032000,-500.0,0.00011027,2]
[421650892,1778025032000,-500.0,0.00011027,2]
[421650890,1778025032000,-500.0,0.00011027,2]
[421650877,1778025032000,-500.0,0.00011027,2]
[421650888,1778025032000,-469.96378684,0.00011027,2]
[421650875,1778025032000,-573.0,0.00010927,2]
[421650898,1778025032000,-181.07822476,0.00011027,2]
[421650886,1778025032000,-500.0,0.00011027,2]
[421650882,1778025032000,-208.6595913,0.00011027,2]
[421650879,1778025032000,-500.0,0.00011027,2]
[421650873,1778025032000,-512.2542725,0.00010927,2]
[421650900,1778025032000,-500.0,0.00011027,2]
[421650884,1778025032000,-500.0,0.00011027,2]
[421650908,1778025032000,-500.0,0.00011027,2]
[421650902,1778025032000,-333.29036185,0.00011027,2]
[421650920,1778025032000,-2149.01028481,0.00011028,2]
[421650918,1778025032000,-76866.63446891,0.00011028,2]
[421650928,1778025032000,-377.19033862,0.00011028,2]
[421650930,1778025032000,-399.29698368,0.00011028,2]
[421650925,1778025032000,-4240.55941701,0.00011028,2]
[421650923,1778025032000,-2832.23513355,0.00011028,2]
[421650916,1778025032000,-1379.40973097,0.00011028,2]
[421650904,1778025032000,-500.0,0.00011027,2]
[421650905,1778025032000,-500.0,0.00011027,2]
[421650910,1778025032000,-500.0,0.00011027,2]
[421650912,1778025032000,-504.51827692,0.00011027,2]
[421650914,1778025032000,-500.0,0.00011027,2]
[421651392,1778025038000,-537.68450001,0.00011737,2]
[421651394,1778025038000,-151.0,0.00011737,2]
[421651393,1778025038000,-151.0,0.00011737,2]
[421651386,1778025038000,-300.0,0.00011451,2]
[421651390,1778025038000,-1559.0,0.00011678,2]
[421651387,1778025038000,-300.0,0.00011451,2]
[421651384,1778025038000,-300.0,0.00011451,2]
[421651389,1778025038000,-600.0,0.00011451,2]
[421651383,1778025038000,-300.0,0.00011451,2]
[421651382,1778025038000,-300.0,0.00011451,2]
[421651385,1778025038000,-300.0,0.00011451,2]
[421651378,1778025038000,-300.0,0.00011451,2]
[421651372,1778025038000,-1559.0,0.0001113,2]
[421651373,1778025038000,-300.0,0.00011451,2]
[421651374,1778025038000,-300.0,0.00011451,2]
[421651376,1778025038000,-300.0,0.00011451,2]
[421651380,1778025038000,-300.0,0.00011451,2]
[421651375,1778025038000,-300.0,0.00011451,2]
[421651388,1778025038000,-300.0,0.00011451,2]
[421651370,1778025038000,-594499.81829912,0.00011028,2]
[421651371,1778025038000,-337.4748867,0.00011077,2]
[421651369,1778025038000,-6100.04329361,0.00011028,2]
[421651368,1778025038000,-2028.97951315,0.00011028,2]
[421651367,1778025038000,-46588.51305982,0.00011028,2]
[421651379,1778025038000,-300.0,0.00011451,2]
[421651381,1778025038000,-300.0,0.00011451,2]
[421651409,1778025038000,-151.0,0.00011737,2]
[421651395,1778025038000,-1957.856,0.00011737,2]
[421651420,1778025038000,-160.0,0.00012309,2]
[421651412,1778025038000,-194.088,0.00012,2]
[421651410,1778025038000,-500.0,0.00011737,2]
[421651413,1778025038000,-171.31,0.00012117,2]
[421651411,1778025038000,-186.0,0.00011863,3]
[421651418,1778025038000,-160.0,0.00012309,2]
[421651417,1778025038000,-160.0,0.00012309,2]
[421651391,1778025038000,-4183.7136416,0.00011679,2]
[421651419,1778025038000,-161.56332863,0.00012309,2]
[421651416,1778025038000,-187.19,0.00012267,2]
[421651415,1778025038000,-1559.0,0.00012226,2]
[421651407,1778025038000,-151.0,0.00011737,2]
[421651414,1778025038000,-176.09,0.00012215,2]
[421651402,1778025038000,-151.0,0.00011737,2]
[421651406,1778025038000,-151.0,0.00011737,2]
[421651408,1778025038000,-151.0,0.00011737,2]
[421651399,1778025038000,-151.0,0.00011737,2]
[421651401,1778025038000,-151.0,0.00011737,2]
[421651405,1778025038000,-151.0,0.00011737,2]
[421651403,1778025038000,-151.0,0.00011737,2]
[421651397,1778025038000,-151.0,0.00011737,2]
[421651400,1778025038000,-151.0,0.00011737,2]
[421651396,1778025038000,-151.0,0.00011737,2]
[421651398,1778025038000,-151.0,0.00011737,2]
[421651404,1778025038000,-151.0,0.00011737,2]
[421651425,1778025039000,-156.89658255,0.00012321,2]
[421651434,1778025039000,-500.0,0.00012328,2]
[421651426,1778025039000,-1453.4264792,0.00012328,2]
[421651427,1778025039000,-500.0,0.00012328,2]
[421651433,1778025039000,-500.0,0.00012328,2]
[421651435,1778025039000,-500.0,0.00012328,2]
[421651432,1778025039000,-500.0,0.00012328,2]
[421651429,1778025039000,-500.0,0.00012328,2]
[421651430,1778025039000,-500.0,0.00012328,2]
[421651422,1778025039000,-537.6845,0.00012321,2]
[421651421,1778025039000,-162.380719,0.00012321,2]
[421651424,1778025039000,-151.0,0.00012321,2]
[421651423,1778025039000,-445.202766,0.00012321,2]
[421651441,1778025039000,-500.0,0.00012328,2]
[421651428,1778025039000,-1074.0,0.00012328,2]
[421651442,1778025039000,-641.86,0.00012328,2]
[421651431,1778025039000,-500.0,0.00012328,2]
[421651444,1778025039000,-500.0,0.00012328,2]
[421651454,1778025039000,-275.57767541,0.00012328,2]
[421651452,1778025039000,-500.0,0.00012328,2]
[421651450,1778025039000,-1301.34,0.00012328,2]
[421651448,1778025039000,-500.0,0.00012328,2]
[421651449,1778025039000,-521.77,0.00012328,2]
[421651451,1778025039000,-500.0,0.00012328,2]
[421651446,1778025039000,-1067.5,0.00012328,2]
[421651453,1778025039000,-500.0,0.00012328,2]
[421651447,1778025039000,-500.0,0.00012328,2]
[421651443,1778025039000,-500.0,0.00012328,2]
[421651437,1778025039000,-500.0,0.00012328,2]
[421651439,1778025039000,-500.0,0.00012328,2]
[421651440,1778025039000,-504.71,0.00012328,2]
[421651436,1778025039000,-500.0,0.00012328,2]
[421651445,1778025039000,-500.0,0.00012328,2]
[421651438,1778025039000,-1215.02,0.00012328,2]
[421651474,1778025043000,-224.42232459,0.00012328,2]
[421651476,1778025043000,-409.48961378,0.00012328,2]
[421651475,1778025043000,-500.0,0.00012328,2]
[421651501,1778025046000,-500.0,0.00012328,2]
[421651496,1778025046000,-500.0,0.00012328,2]
[421651499,1778025046000,-1994.0,0.00012328,2]
[421651493,1778025046000,-500.0,0.00012328,2]
[421651494,1778025046000,-500.0,0.00012328,2]
[421651497,1778025046000,-584.41,0.00012328,2]
[421651503,1778025046000,-500.0,0.00012328,2]
[421651498,1778025046000,-500.0,0.00012328,2]
[421651492,1778025046000,-848.19,0.00012328,2]
[421651491,1778025046000,-684.35654755,0.00012328,2]
[421651490,1778025046000,-657.48855298,0.00012328,2]
[421651489,1778025046000,-169.87489947,0.00012328,2]
[421651488,1778025046000,-500.0,0.00012328,2]
[421651487,1778025046000,-500.0,0.00012328,2]
[421651495,1778025046000,-1021.4425,0.00012328,2]
[421651511,1778025046000,-566.16,0.00012328,2]
[421651486,1778025046000,-235.27038622,0.00012328,2]
[421651513,1778025046000,-1944.22610013,0.00012328,2]
[421651500,1778025046000,-258.61485232,0.00012328,2]
[421651517,1778025046000,-714.77,0.00012328,2]
[421651519,1778025046000,-826.94,0.00012328,2]
[421651518,1778025046000,-585.88,0.00012328,2]
[421651516,1778025046000,-612.59956774,0.00012328,2]
[421651514,1778025046000,-353.15389987,0.00012328,2]
[421651515,1778025046000,-1205.89,0.00012328,2]
[421651507,1778025046000,-500.0,0.00012328,2]
[421651502,1778025046000,-500.0,0.00012328,2]
[421651506,1778025046000,-500.0,0.00012328,2]
[421651508,1778025046000,-728.8,0.00012328,2]
[421651510,1778025046000,-500.0,0.00012328,2]
[421651505,1778025046000,-500.0,0.00012328,2]
[421651509,1778025046000,-500.0,0.00012328,2]
[421651512,1778025046000,-500.0,0.00012328,2]
[421651504,1778025046000,-500.0,0.00012328,2]
[421651568,1778025047000,-500.0,0.00012328,2]
[421651565,1778025047000,-634.61431716,0.00012328,2]
[421651563,1778025047000,-500.0,0.00012328,2]
[421651564,1778025047000,-500.0,0.00012328,2]
[421651559,1778025047000,-500.0,0.00012328,2]
[421651525,1778025047000,-500.0,0.00012328,2]
[421651558,1778025047000,-820.57,0.00012328,2]
[421651555,1778025047000,-500.0,0.00012328,2]
[421651566,1778025047000,-500.0,0.00012328,2]
[421651569,1778025047000,-500.0,0.00012328,2]
[421651570,1778025047000,-1124.5,0.00012328,2]
[421651573,1778025047000,-294.20330873,0.00012328,2]
[421651557,1778025047000,-1056.49,0.00012328,2]
[421651572,1778025047000,-2715.35,0.00012328,2]
[421651585,1778025047000,-500.0,0.00012328,2]
[421651575,1778025047000,-500.0,0.00012328,2]
[421651586,1778025047000,-500.0,0.00012328,2]
[421651577,1778025047000,-500.0,0.00012328,2]
[421651576,1778025047000,-818.83,0.00012328,2]
[421651574,1778025047000,-560.19,0.00012328,2]
[421651579,1778025047000,-500.0,0.00012328,2]
[421651578,1778025047000,-1080.63,0.00012328,2]
[421651581,1778025047000,-550.18,0.00012328,2]
[421651571,1778025047000,-500.0,0.00012328,2]
[421651554,1778025047000,-976.41,0.00012328,2]
[421651560,1778025047000,-500.0,0.00012328,2]
[421651553,1778025047000,-1642.16,0.00012328,2]
[421651580,1778025047000,-500.0,0.00012328,2]
[421651530,1778025047000,-500.0,0.00012328,2]
[421651532,1778025047000,-2557.16,0.00012328,2]
[421651528,1778025047000,-500.0,0.00012328,2]
[421651521,1778025047000,-500.0,0.00012328,2]
[421651523,1778025047000,-607.92,0.00012328,2]
[421651536,1778025047000,-500.0,0.00012328,2]
[421651544,1778025047000,-1110.23,0.00012328,2]
[421651540,1778025047000,-500.0,0.00012328,2]
[421651542,1778025047000,-500.0,0.00012328,2]
[421651547,1778025047000,-500.0,0.00012328,2]
[421651534,1778025047000,-749.06,0.00012328,2]
[421651543,1778025047000,-500.0,0.00012328,2]
[421651549,1778025047000,-500.0,0.00012328,2]
[421651545,1778025047000,-500.0,0.00012328,2]
[421651538,1778025047000,-1277.31,0.00012328,2]
[421651548,1778025047000,-500.0,0.00012328,2]
[421651541,1778025047000,-500.0,0.00012328,2]
[421651546,1778025047000,-500.0,0.00012328,2]
[421651562,1778025047000,-2712.4,0.00012328,2]
[421651561,1778025047000,-500.0,0.00012328,2]
[421651550,1778025047000,-546.86,0.00012328,2]
[421651556,1778025047000,-510.44,0.00012328,2]
[421651552,1778025047000,-646.18,0.00012328,2]
[421651551,1778025047000,-2851.6021,0.00012328,2]
[421651567,1778025047000,-500.0,0.00012328,2]
[421651582,1778025047000,-500.0,0.00012328,2]
[421651615,1778025047000,-500.0,0.00012328,2]
[421651623,1778025047000,-500.0,0.00012328,2]
[421651618,1778025047000,-500.0,0.00012328,2]
[421651624,1778025047000,-2785.91,0.00012328,2]
[421651621,1778025047000,-585.04,0.00012328,2]
[421651625,1778025047000,-500.0,0.00012328,2]
[421651617,1778025047000,-623.07,0.00012328,2]
[421651620,1778025047000,-500.0,0.00012328,2]
[421651613,1778025047000,-500.0,0.00012328,2]
[421651619,1778025047000,-500.0,0.00012328,2]
[421651622,1778025047000,-500.0,0.00012328,2]
[421651635,1778025047000,-500.0,0.00012328,2]
[421651627,1778025047000,-500.0,0.00012328,2]
[421651626,1778025047000,-500.0,0.00012328,2]
[421651630,1778025047000,-301.78253036,0.00012328,2]
[421651628,1778025047000,-500.0,0.00012328,2]
[421651629,1778025047000,-500.0,0.00012328,2]
[421651633,1778025047000,-500.0,0.00012328,2]
[421651634,1778025047000,-773.22,0.00012328,2]
[421651632,1778025047000,-500.0,0.00012328,2]
[421651631,1778025047000,-500.0,0.00012328,2]
[421651636,1778025047000,-500.0,0.00012328,2]
[421651583,1778025047000,-500.0,0.00012328,2]
[421651614,1778025047000,-2337.3,0.00012328,2]
[421651616,1778025047000,-500.0,0.00012328,2]
[421651584,1778025047000,-3755.98,0.00012328,2]
[421651607,1778025047000,-500.0,0.00012328,2]
[421651587,1778025047000,-291.84198522,0.00012328,2]
[421651612,1778025047000,-500.0,0.00012328,2]
[421651589,1778025047000,-2213.49,0.00012328,2]
[421651588,1778025047000,-4496.68,0.00012328,2]
[421651592,1778025047000,-500.0,0.00012328,2]
[421651598,1778025047000,-5000.0,0.00012328,2]
[421651597,1778025047000,-6885.4,0.00012328,2]
[421651591,1778025047000,-500.0,0.00012328,2]
[421651595,1778025047000,-1577.66,0.00012328,2]
[421651590,1778025047000,-701.01,0.00012328,2]
[421651596,1778025047000,-500.0,0.00012328,2]
[421651594,1778025047000,-681.21,0.00012328,2]
[421651599,1778025047000,-5000.0,0.00012328,2]
[421651601,1778025047000,-5000.0,0.00012328,2]
[421651593,1778025047000,-7818.21,0.00012328,2]
[421651605,1778025047000,-2216.46,0.00012328,2]
[421651606,1778025047000,-500.0,0.00012328,2]
[421651610,1778025047000,-971.89,0.00012328,2]
[421651608,1778025047000,-500.0,0.00012328,2]
[421651609,1778025047000,-500.0,0.00012328,2]
[421651611,1778025047000,-2513.91,0.00012328,2]
[421651604,1778025047000,-211.005917,0.00012328,2]
[421651600,1778025047000,-5000.0,0.00012328,2]
[421651602,1778025047000,-5000.0,0.00012328,2]
[421651603,1778025047000,-5000.0,0.00012328,2]
[421651687,1778025048000,-500.0,0.00012328,2]
[421651676,1778025048000,-500.0,0.00012328,2]
[421651678,1778025048000,-500.0,0.00012328,2]
[421651673,1778025048000,-35245.9,0.00012328,2]
[421651675,1778025048000,-1496.04,0.00012328,2]
[421651672,1778025048000,-500.0,0.00012328,2]
[421651674,1778025048000,-500.0,0.00012328,2]
[421651670,1778025048000,-1148.45,0.00012328,2]
[421651665,1778025048000,-960.5,0.00012328,2]
[421651669,1778025048000,-5744.97,0.00012328,2]
[421651688,1778025048000,-1382.16,0.00012328,2]
[421651671,1778025048000,-500.0,0.00012328,2]
[421651680,1778025048000,-500.0,0.00012328,2]
[421651701,1778025048000,-500.0,0.00012328,2]
[421651689,1778025048000,-701.21,0.00012328,2]
[421651683,1778025048000,-500.0,0.00012328,2]
[421651682,1778025048000,-7169.08,0.00012328,2]
[421651681,1778025048000,-1580.49,0.00012328,2]
[421651677,1778025048000,-1686.72,0.00012328,2]
[421651686,1778025048000,-654.46,0.00012328,2]
[421651685,1778025048000,-3013.03,0.00012328,2]
[421651684,1778025048000,-500.0,0.00012328,2]
[421651691,1778025048000,-3933.9,0.00012328,2]
[421651700,1778025048000,-3460.36,0.00012328,2]
[421651695,1778025048000,-631.46,0.00012328,2]
[421651666,1778025048000,-500.0,0.00012328,2]
[421651679,1778025048000,-500.0,0.00012328,2]
[421651668,1778025048000,-500.0,0.00012328,2]
[421651663,1778025048000,-500.0,0.00012328,2]
[421651664,1778025048000,-6288.74,0.00012328,2]
[421651637,1778025048000,-500.0,0.00012328,2]
[421651638,1778025048000,-500.0,0.00012328,2]
[421651640,1778025048000,-2593.61,0.00012328,2]
[421651641,1778025048000,-500.0,0.00012328,2]
[421651639,1778025048000,-758.42,0.00012328,2]
[421651643,1778025048000,-517.26,0.00012328,2]
[421651646,1778025048000,-1895.87,0.00012328,2]
[421651642,1778025048000,-2145.11,0.00012328,2]
[421651649,1778025048000,-500.0,0.00012328,2]
[421651645,1778025048000,-2326.41,0.00012328,2]
[421651648,1778025048000,-500.0,0.00012328,2]
[421651650,1778025048000,-1727.18,0.00012328,2]
[421651647,1778025048000,-3098.18,0.00012328,2]
[421651644,1778025048000,-500.0,0.00012328,2]
[421651662,1778025048000,-2092.05,0.00012328,2]
[421651652,1778025048000,-500.0,0.00012328,2]
[421651699,1778025048000,-500.0,0.00012328,2]
[421651657,1778025048000,-1407.61,0.00012328,2]
[421651654,1778025048000,-539.15,0.00012328,2]
[421651651,1778025048000,-500.0,0.00012328,2]
[421651655,1778025048000,-500.0,0.00012328,2]
[421651661,1778025048000,-525.75,0.00012328,2]
[421651656,1778025048000,-500.0,0.00012328,2]
[421651653,1778025048000,-4811.63,0.00012328,2]
[421651658,1778025048000,-500.0,0.00012328,2]
[421651659,1778025048000,-2435.79,0.00012328,2]
[421651660,1778025048000,-500.0,0.00012328,2]
[421651667,1778025048000,-2459.87,0.00012328,2]
[421651692,1778025048000,-2144.86,0.00012328,2]
[421651690,1778025048000,-500.0,0.00012328,2]
[421651702,1778025048000,-500.0,0.00012328,2]
[421651747,1778025048000,-500.0,0.00012602,2]
[421651735,1778025048000,-1074.0,0.00012602,2]
[421651741,1778025048000,-500.0,0.00012602,2]
[421651732,1778025048000,-9878.56165271,0.00012478,2]
[421651737,1778025048000,-500.0,0.00012602,2]
[421651736,1778025048000,-500.0,0.00012602,2]
[421651730,1778025048000,-170.0,0.00012411,3]
[421651740,1778025048000,-500.0,0.00012602,2]
[421651731,1778025048000,-268.097,0.00012462,2]
[421651734,1778025048000,-1475.464,0.00012602,2]
[421651749,1778025048000,-500.0,0.00012602,2]
[421651742,1778025048000,-1215.02,0.00012602,2]
[421651746,1778025048000,-641.86,0.00012602,2]
[421651751,1778025048000,-500.0,0.00012602,2]
[421651754,1778025048000,-1301.34,0.00012602,2]
[421651738,1778025048000,-500.0,0.00012602,2]
[421651698,1778025048000,-500.0,0.00012328,2]
[421651750,1778025048000,-1067.5,0.00012602,2]
[421651729,1778025048000,-646.0,0.00012408,2]
[421651745,1778025048000,-500.0,0.00012602,2]
[421651748,1778025048000,-604.03151177,0.00012602,2]
[421651733,1778025048000,-720.0,0.00012597,2]
[421651753,1778025048000,-521.77,0.00012602,2]
[421651739,1778025048000,-500.0,0.00012602,2]
[421651743,1778025048000,-500.0,0.00012602,2]
[421651756,1778025048000,-500.0,0.00012602,2]
[421651755,1778025048000,-500.0,0.00012602,2]
[421651757,1778025048000,-500.0,0.00012602,2]
[421651752,1778025048000,-500.0,0.00012602,2]
[421651727,1778025048000,-1406.0,0.00012408,2]
[421651744,1778025048000,-504.71,0.00012602,2]
[421651723,1778025048000,-500.0,0.00012328,2]
[421651725,1778025048000,-500.0,0.00012328,2]
[421651693,1778025048000,-7877.83,0.00012328,2]
[421651694,1778025048000,-500.0,0.00012328,2]
[421651696,1778025048000,-2229.41,0.00012328,2]
[421651697,1778025048000,-500.0,0.00012328,2]
[421651703,1778025048000,-500.0,0.00012328,2]
[421651704,1778025048000,-7487.83,0.00012328,2]
[421651714,1778025048000,-500.0,0.00012328,2]
[421651710,1778025048000,-1227.19,0.00012328,2]
[421651705,1778025048000,-1059.27,0.00012328,2]
[421651708,1778025048000,-3710.65,0.00012328,2]
[421651715,1778025048000,-1949.07,0.00012328,2]
[421651716,1778025048000,-500.0,0.00012328,2]
[421651706,1778025048000,-500.0,0.00012328,2]
[421651707,1778025048000,-500.0,0.00012328,2]